{"text_format":"3","workbook":"xlsx","n_sheets":3,"sheets":["התחלה","תקציב חודשי ללימודים","חישובי_תרשים"],"not_rendered":{"charts":4,"defined_names":19},"read":"whole","date_system":"1900"}

{"sheet":"התחלה","index":0,"n_rows":7,"n_cols":2,"rows_kept":7}
[null,"אודות תבנית זו"]
[null,"השתמש בגליון העבודה 'תקציב חודשי ללימודים' כדי לעקוב אחר ההכנסות, ההוצאות ותזרים המזומנים."]
[null,"הזן הכנסות חודשיות והוצאות חודשיות כדי לחשב את סה\"כ ההכנסות וההוצאות."]
[null,"תזרים המזומנים מחושב באופן אוטומטי, והתרשים 'תזרים מזומנים' מתעדכן עבורך."]
[null,"בחר את המחוון לקבלת תרשימים של הכנסות, הוצאות ותזרים מזומנים עבור חודש ושנה."]
[null,"הערה: "]
[null,"הוראות נוספות סופקו בעמודה A בגליון העבודה. טקסט זה הוסתר במכוון. כדי להסיר את הטקסט, בחר את עמודה A ולאחר מכן הקש DELETE. כדי לבטל את הסתרת הטקסט, בחר את עמודה A ולאחר מכן שנה את צבע הגופן."]

{"sheet":"תקציב חודשי ללימודים","index":1,"n_rows":72,"n_cols":16,"rows_kept":72,"merged":[[5,1,14,3],[5,4,14,11],[5,12,13,15],[15,1,19,15],[20,1,21,15]]}
["צור תקציב חודשי ללימודים בגליון עבודה זה. הכותרת של גליון עבודה זה מופיעה בתא משמאל ובתא B1. הוראות שימוש בגליון עבודה זה מופיעות בתאים שבעמודה זו. ההוראה הבאה מופיעה בתא A4.","תקציב חודשי ללימודים"]
[]
[]
["התווית 'הכנסות' מופיעה בתא משמאל, התווית 'הוצאות' מופיעה בתא E4, והתווית 'תזרים מזומנים' מופיעה בתא M4.",{"$f":"חישובי_תרשים!$D$6","v":"הכנסות בשנה:"},null,null,{"$f":"חישובי_תרשים!$D$7","v":"הוצאות בשנה:"},{"$nulls":7},{"$f":"חישובי_תרשים!$D$8","v":"תזרים מזומנים בשנה:"}]
["ההכנסות מתעדכנות באופן אוטומטי בתא משמאל. ההוצאות מתעדכנות באופן אוטומטי בתא E5. תזרים המזומנים מתעדכן באופן אוטומטי בתא M5.",{"$f":"\" \"&חישובי_תרשים!$F$6","v":{"$error":"#VALUE!"}},null,null,{"$f":"\" \"&חישובי_תרשים!$F$7","v":{"$error":"#VALUE!"}},{"$nulls":7},{"$f":"\" \"&חישובי_תרשים!$F$8","v":" 169 ₪"}]
["תרשים טבעת שמציג את סיכום ההכנסות בתא משמאל, תרשים טבעת שמציג את סיכום ההוצאות בתא E6, ותרשים עמודות שמציג תזרים מזומנים חיובי ושלילי בתא M6 מתעדכנים באופן אוטומטי. ההוראה הבאה מופיעה בתא A17.","תרשים טבעת שמציג את סיכום ההכנסות עבור החודש או השנה שנבחרו מופיע בתא זה.",null,null,"תרשים טבעת שמציג את סיכום ההוצאות עבור החודש או השנה שנבחרו מופיע בתא זה.",{"$nulls":7},"תרשים עמודות שמציג את תזרים המזומנים החיובי והשלילי עבור החודש או השנה שנבחרו מופיע בתא זה."]
{"$rows_empty":9}
[null,"תרשים קו שמציג את תזרים המזומנים עבור החודש או השנה שנבחרו מופיע בתא זה."]
["תרשים קו של תזרים מזומנים מופיע בתא משמאל. ההוראה הבאה מופיעה בתא A21."]
[]
[]
[]
["בחר את המחוון משמאל לקבלת נתונים ותרשימים חודשיים או שנתיים של ההכנסות, ההוצאות ותזרים המזומנים. ההוראה הבאה מופיעה בתא A25.","המחוון מופיע בתא זה."]
[]
[]
[]
["בחר חודש בתא משמאל. הקש ALT+חץ למטה לקבלת אפשרויות ולאחר מכן הקש על החץ למטה ועל ENTER כדי לבצע בחירה.","ינו"]
["התקופה שנבחרה מתעדכנת באופן אוטומטי בתא P26.",{"$nulls":14},{"$f":"התקופה_שנבחרה","v":{"$error":"#VALUE!"}}]
["התוויות מופיעות בשורה זו: התווית 'סכום מזומנים חודשי אחרי הוצאות' מופיעה בתא משמאל, תוויות החודשים מופיעות בתאים C27 עד N27, התווית 'שנה' מופיעה בתא O27, והתווית 'אחוז גידול' מופיעה בתא P27.","סכום מזומנים חודשי אחרי הוצאות",{"$f":"חודש_ראשון","v":{"$error":"#VALUE!"}},{"$f":"החודש_הבא","v":{"$error":"#VALUE!"}},{"$error":"#VALUE!"},{"$error":"#VALUE!"},{"$error":"#VALUE!"},{"$error":"#VALUE!"},{"$error":"#VALUE!"},{"$error":"#VALUE!"},{"$error":"#VALUE!"},{"$error":"#VALUE!"},{"$error":"#VALUE!"},{"$error":"#VALUE!"},"שנה  ","% גידול "]
["התווית 'תזרים מזומנים' מופיעה בתא משמאל. תזרים המזומנים עבור כל חודש מחושב באופן אוטומטי בתאים C28 עד N28. הסכום השנתי מחושב באופן אוטומטי בתא O28. אחוז הגידול מחושב באופן אוטומטי בתא P28. תרשים זעיר מתעדכן באופן אוטומטי בתא Q28.","תזרים מזומנים",{"$f":"C37-C72","v":169},69,192,199,204,{"v":-771,"d":"-771 "},124,154,{"v":-721,"d":"-721 "},109,34,{"v":-61,"d":"-61 "},{"$f":"SUM(C28:N28)","v":{"v":-299,"d":"-299 "}},{"$f":"INDEX($C28:$O28,,עמודת_התקופה_שנבחרה)/INDEX($C$37:$O$37,,עמודת_התקופה_שנבחרה)","v":{"$error":"#VALUE!"}}]
["התווית 'תזרים מזומנים מצטבר' מופיעה בתא משמאל. תזרים המזומנים המצטבר עבור כל חודש מחושב באופן אוטומטי בתאים C29 עד N29. הסכום השנתי מחושב באופן אוטומטי בתא O29. אחוז הגידול מחושב באופן אוטומטי בתא P29. תרשים זעיר מתעדכן באופן אוטומטי בתא Q29. ההוראה הבאה מופיעה בתא A31.","תזרים מזומנים מצטבר",{"$f":"SUM($C$28:C$28)","v":169},{"$f":"SUM($C$28:D$28)","v":238},{"$f":"SUM($C$28:E$28)","v":430},{"$f":"SUM($C$28:F$28)","v":629},{"$f":"SUM($C$28:G$28)","v":833},{"$f":"SUM($C$28:H$28)","v":62},{"$f":"SUM($C$28:I$28)","v":186},{"$f":"SUM($C$28:J$28)","v":340},{"$f":"SUM($C$28:K$28)","v":{"v":-381,"d":"-381 "}},{"$f":"SUM($C$28:L$28)","v":{"v":-272,"d":"-272 "}},{"$f":"SUM($C$28:M$28)","v":{"v":-238,"d":"-238 "}},{"$f":"SUM($C$28:N$28)","v":{"v":-299,"d":"-299 "}}]
[]
["התווית 'הכנסות חודשיות' מופיעה בתא משמאל, תוויות החודשים מופיעות בתאים C31 עד N31, התווית 'שנה' מופיעה בתא O31, והתווית 'אחוז גידול' מופיעה בתא P31. הזן פריטי הכנסות חודשיות בתאים B32 עד B36 וסכומים חודשיים בתאים C32 עד N36. ההכנסות השנתיות מחושבות באופן אוטומטי בתאים O32 עד O36. אחוז הגידול מחושב באופן אוטומטי בתאים P32 עד P36. ההוראה הבאה מופיעה בתא A37.","הכנסות חודשיות",{"$f":"חודש_ראשון","v":{"$error":"#VALUE!"}},{"$f":"החודש_הבא","v":{"$error":"#VALUE!"}},{"$error":"#VALUE!"},{"$error":"#VALUE!"},{"$error":"#VALUE!"},{"$error":"#VALUE!"},{"$error":"#VALUE!"},{"$error":"#VALUE!"},{"$error":"#VALUE!"},{"$error":"#VALUE!"},{"$error":"#VALUE!"},{"$error":"#VALUE!"},"שנה  ","% גידול "]
[null,"עזרה כספית (מענקים, מלגות, הלוואות)",0,0,750,750,750,750,750,750,750,750,750,750,{"$f":"SUM(C32:N32)","v":{"v":7500,"d":"7,500"}},{"$f":"INDEX($C32:$O32,,עמודת_התקופה_שנבחרה)/INDEX($C$37:$O$37,,עמודת_התקופה_שנבחרה)","v":{"$error":"#VALUE!"}}]
[null,"שכר אחרי מס מעבודה",450,450,450,450,450,450,450,450,550,350,350,350,{"v":5200,"d":"5,200"},{"$f":"INDEX($C33:$O33,,עמודת_התקופה_שנבחרה)/INDEX($C$37:$O$37,,עמודת_התקופה_שנבחרה)","v":{"$error":"#VALUE!"}}]
[null,"עזרה כספית מבני משפחה",200,200,{"v":1000,"d":"1,000"},350,350,350,350,350,350,350,350,350,{"v":4550,"d":"4,550"},{"$f":"INDEX($C34:$O34,,עמודת_התקופה_שנבחרה)/INDEX($C$37:$O$37,,עמודת_התקופה_שנבחרה)","v":{"$error":"#VALUE!"}}]
[null,"משיכות מהחסכונות",500,350,150,0,0,0,0,0,0,0,0,0,{"v":1000,"d":"1,000"},{"$f":"INDEX($C35:$O35,,עמודת_התקופה_שנבחרה)/INDEX($C$37:$O$37,,עמודת_התקופה_שנבחרה)","v":{"$error":"#VALUE!"}}]
[null,"אחר (דמי מזונות, סיוע ציבורי, מתנות וכן הלאה)",75,75,75,75,75,75,75,75,75,75,75,75,900,{"$f":"INDEX($C36:$O36,,עמודת_התקופה_שנבחרה)/INDEX($C$37:$O$37,,עמודת_התקופה_שנבחרה)","v":{"$error":"#VALUE!"}}]
["התווית 'סה\"כ הכנסות' מופיעה בתא משמאל. סה\"כ ההכנסות עבור כל חודש מחושב באופן אוטומטי בתאים C37 עד N37. ההכנסות השנתיות מחושבות באופן אוטומטי בתא O37. אחוז הגידול מחושב באופן אוטומטי בתא P37. תרשים זעיר מתעדכן באופן אוטומטי בתא Q37. ההוראה הבאה מופיעה בתא A39.","סה\"כ הכנסות",{"$f":"SUM(C32:C36)","v":{"v":1225,"d":"1,225"}},{"v":1075,"d":"1,075"},{"v":2425,"d":"2,425"},{"v":1625,"d":"1,625"},{"v":1625,"d":"1,625"},{"v":1625,"d":"1,625"},{"v":1625,"d":"1,625"},{"v":1625,"d":"1,625"},{"v":1725,"d":"1,725"},{"v":1525,"d":"1,525"},{"v":1525,"d":"1,525"},{"v":1525,"d":"1,525"},{"v":19150,"d":"19,150"},{"$f":"INDEX($C37:$O37,,עמודת_התקופה_שנבחרה)/INDEX($C$37:$O$37,,עמודת_התקופה_שנבחרה)","v":{"$error":"#VALUE!"}}]
[]
["התווית 'הוצאות חודשיות' מופיעה בתא משמאל, תוויות החודשים מופיעות בתאים C39 עד N39, התווית 'שנה' מופיעה בתא O39, והתווית 'אחוז גידול' מופיעה בתא P39.","הוצאות חודשיות",{"$f":"חודש_ראשון","v":{"$error":"#VALUE!"}},{"$f":"החודש_הבא","v":{"$error":"#VALUE!"}},{"$error":"#VALUE!"},{"$error":"#VALUE!"},{"$error":"#VALUE!"},{"$error":"#VALUE!"},{"$error":"#VALUE!"},{"$error":"#VALUE!"},{"$error":"#VALUE!"},{"$error":"#VALUE!"},{"$error":"#VALUE!"},{"$error":"#VALUE!"},"שנה  ","% גידול "]
["הזן או שנה את פריט ההוצאות בתא משמאל ואת הסכומים החודשיים בתאים C40 עד N43. הסכום השנתי מחושב באופן אוטומטי בתאים O40 עד O43. אחוז הגידול מחושב באופן אוטומטי בתאים P40 עד P43. תרשים זעיר מתעדכן באופן אוטומטי בתא Q40. ההוראה הבאה מופיעה בתא A45.","מגורים ומזון",{"$f":"SUM(C41:C43)","v":565},565,565,565,565,565,565,565,565,565,565,565,{"$f":"SUM(C40:N40)","v":{"v":6780,"d":"6,780"}},{"$f":"INDEX($C40:$O40,,עמודת_התקופה_שנבחרה)/INDEX($C$72:$O$72,,עמודת_התקופה_שנבחרה)","v":{"$error":"#VALUE!"}}]
[null,null,315,315,315,315,315,315,315,315,315,315,315,315,{"$f":"SUM(C41:N41)","v":{"v":3780,"d":"3,780"}},{"$f":"INDEX($C41:$O41,,עמודת_התקופה_שנבחרה)/INDEX($C$72:$O$72,,עמודת_התקופה_שנבחרה)","v":{"$error":"#VALUE!"}}]
[null,null,200,200,200,200,200,200,200,200,200,200,200,200,{"$f":"SUM(C42:N42)","v":{"v":2400,"d":"2,400"}},{"$f":"INDEX($C42:$O42,,עמודת_התקופה_שנבחרה)/INDEX($C$72:$O$72,,עמודת_התקופה_שנבחרה)","v":{"$error":"#VALUE!"}}]
[null,null,50,50,50,50,50,50,50,50,50,50,50,50,{"$f":"SUM(C43:N43)","v":600},{"$f":"INDEX($C43:$O43,,עמודת_התקופה_שנבחרה)/INDEX($C$72:$O$72,,עמודת_התקופה_שנבחרה)","v":{"$error":"#VALUE!"}}]
[]
["הזן או שנה את פריט ההוצאות בתא משמאל ואת הסכומים החודשיים בתאים C45 עד N47. הסכום השנתי מחושב באופן אוטומטי בתאים O45 עד O47. אחוז הגידול מחושב באופן אוטומטי בתאים P45 עד P47. תרשים זעיר מתעדכן באופן אוטומטי בתא Q45. ההוראה הבאה מופיעה בתא A49.","שכר לימוד",{"$f":"SUM(C46:C47)","v":0},0,750,0,0,650,0,0,650,0,0,0,{"$f":"SUM(C45:N45)","v":{"v":2050,"d":"2,050"}},{"$f":"INDEX($C45:$O45,,עמודת_התקופה_שנבחרה)/INDEX($C$72:$O$72,,עמודת_התקופה_שנבחרה)","v":{"$error":"#VALUE!"}}]
[null,null,0,0,500,0,0,500,0,0,500,0,0,0,{"$f":"SUM(C46:N46)","v":{"v":1500,"d":"1,500"}},{"$f":"INDEX($C46:$O46,,עמודת_התקופה_שנבחרה)/INDEX($C$72:$O$72,,עמודת_התקופה_שנבחרה)","v":{"$error":"#VALUE!"}}]
[null,null,0,0,250,0,0,150,0,0,150,0,0,0,{"$f":"SUM(C47:N47)","v":550},{"$f":"INDEX($C47:$O47,,עמודת_התקופה_שנבחרה)/INDEX($C$72:$O$72,,עמודת_התקופה_שנבחרה)","v":{"$error":"#VALUE!"}}]
[]
["הזן או שנה את פריט ההוצאות בתא משמאל ואת הסכומים החודשיים בתאים C49 עד N51. הסכום השנתי מחושב באופן אוטומטי בתאים O49 עד O51. אחוז הגידול מחושב באופן אוטומטי בתאים P49 עד P51. תרשים זעיר מתעדכן באופן אוטומטי בתא Q49. ההוראה הבאה מופיעה בתא A53.","ספרים וציוד",{"$f":"SUM(C50:C51)","v":0},0,325,20,20,325,10,10,400,15,15,15,{"$f":"SUM(C49:N49)","v":{"v":1155,"d":"1,155"}},{"$f":"INDEX($C49:$O49,,עמודת_התקופה_שנבחרה)/INDEX($C$72:$O$72,,עמודת_התקופה_שנבחרה)","v":{"$error":"#VALUE!"}}]
[null,null,0,0,225,0,0,275,0,0,325,0,0,0,{"$f":"SUM(C50:N50)","v":825},{"$f":"INDEX($C50:$O50,,עמודת_התקופה_שנבחרה)/INDEX($C$72:$O$72,,עמודת_התקופה_שנבחרה)","v":{"$error":"#VALUE!"}}]
[null,null,0,0,100,20,20,50,10,10,75,15,15,15,{"$f":"SUM(C51:N51)","v":330},{"$f":"INDEX($C51:$O51,,עמודת_התקופה_שנבחרה)/INDEX($C$72:$O$72,,עמודת_התקופה_שנבחרה)","v":{"$error":"#VALUE!"}}]
[]
["הזן או שנה את פריט ההוצאות בתא משמאל ואת הסכומים החודשיים בתאים C53 עד N57. הסכום השנתי מחושב באופן אוטומטי בתאים O53 עד O57. אחוז הגידול מחושב באופן אוטומטי בתאים P53 עד P57. תרשים זעיר מתעדכן באופן אוטומטי בתא Q53. ההוראה הבאה מופיעה בתא A59.","תחבורה",{"$f":"SUM(C54:C57)","v":224},174,174,219,174,174,274,219,174,174,224,269,{"$f":"SUM(C53:N53)","v":{"v":2473,"d":"2,473"}},{"$f":"INDEX($C53:$O53,,עמודת_התקופה_שנבחרה)/INDEX($C$72:$O$72,,עמודת_התקופה_שנבחרה)","v":{"$error":"#VALUE!"}}]
[null,null,30,30,30,75,30,30,30,75,30,30,30,75,{"$f":"SUM(C54:N54)","v":495},{"$f":"INDEX($C54:$O54,,עמודת_התקופה_שנבחרה)/INDEX($C$72:$O$72,,עמודת_התקופה_שנבחרה)","v":{"$error":"#VALUE!"}}]
[null,null,129,129,129,129,129,129,129,129,129,129,129,129,{"$f":"SUM(C55:N55)","v":{"v":1548,"d":"1,548"}},{"$f":"INDEX($C55:$O55,,עמודת_התקופה_שנבחרה)/INDEX($C$72:$O$72,,עמודת_התקופה_שנבחרה)","v":{"$error":"#VALUE!"}}]
[null,null,15,15,15,15,15,15,15,15,15,15,15,15,{"$f":"SUM(C56:N56)","v":180},{"$f":"INDEX($C56:$O56,,עמודת_התקופה_שנבחרה)/INDEX($C$72:$O$72,,עמודת_התקופה_שנבחרה)","v":{"$error":"#VALUE!"}}]
[null,null,50,0,0,0,0,0,100,0,0,0,50,50,{"$f":"SUM(C57:N57)","v":250},{"$f":"INDEX($C57:$O57,,עמודת_התקופה_שנבחרה)/INDEX($C$72:$O$72,,עמודת_התקופה_שנבחרה)","v":{"$error":"#VALUE!"}}]
[]
["הזן או שנה את פריט ההוצאות בתא משמאל ואת הסכומים החודשיים בתאים C59 עד N65. הסכום השנתי מחושב באופן אוטומטי בתאים O59 עד O65. אחוז הגידול מחושב באופן אוטומטי בתאים P59 עד P65. תרשים זעיר מתעדכן באופן אוטומטי בתא Q59. ההוראה הבאה מופיעה בתא A67.","הוצאות לפי שיקול דעת",{"$f":"SUM(C60:C65)","v":69},69,169,369,419,444,419,419,394,394,419,469,{"$f":"SUM(C59:N59)","v":{"v":4053,"d":"4,053"}},{"$f":"INDEX($C59:$O59,,עמודת_התקופה_שנבחרה)/INDEX($C$72:$O$72,,עמודת_התקופה_שנבחרה)","v":{"$error":"#VALUE!"}}]
[null,null,0,0,0,50,100,100,100,100,75,75,100,100,800,{"$f":"INDEX($C60:$O60,,עמודת_התקופה_שנבחרה)/INDEX($C$72:$O$72,,עמודת_התקופה_שנבחרה)","v":{"$error":"#VALUE!"}}]
[null,null,69,69,69,69,69,69,69,69,69,69,69,69,828,{"$f":"INDEX($C61:$O61,,עמודת_התקופה_שנבחרה)/INDEX($C$72:$O$72,,עמודת_התקופה_שנבחרה)","v":{"$error":"#VALUE!"}}]
[null,null,0,0,0,0,0,25,0,0,0,0,0,50,75,{"$f":"INDEX($C62:$O62,,עמודת_התקופה_שנבחרה)/INDEX($C$72:$O$72,,עמודת_התקופה_שנבחרה)","v":{"$error":"#VALUE!"}}]
[null,null,0,0,100,100,100,100,100,100,100,100,100,100,{"v":1000,"d":"1,000"},{"$f":"INDEX($C63:$O63,,עמודת_התקופה_שנבחרה)/INDEX($C$72:$O$72,,עמודת_התקופה_שנבחרה)","v":{"$error":"#VALUE!"}}]
[null,null,0,0,0,50,50,50,50,50,50,50,50,50,450,{"$f":"INDEX($C64:$O64,,עמודת_התקופה_שנבחרה)/INDEX($C$72:$O$72,,עמודת_התקופה_שנבחרה)","v":{"$error":"#VALUE!"}}]
[null,null,0,0,0,100,100,100,100,100,100,100,100,100,900,{"$f":"INDEX($C65:$O65,,עמודת_התקופה_שנבחרה)/INDEX($C$72:$O$72,,עמודת_התקופה_שנבחרה)","v":{"$error":"#VALUE!"}}]
[]
["הזן או שנה את פריט ההוצאות בתא משמאל ואת הסכומים החודשיים בתאים C67 עד N70. הסכום השנתי מחושב באופן אוטומטי בתאים O67 עד O70. אחוז הגידול מחושב באופן אוטומטי בתאים P67 עד P70. תרשים זעיר מתעדכן באופן אוטומטי בתא Q67. ההוראה הבאה מופיעה בתא A72.","הוצאות אחרות",{"$f":"SUM(C68:C70)","v":198},{"$f":"SUM(D68:D70)","v":198},250,253,243,238,233,258,263,268,268,268,{"$f":"SUM(C67:N67)","v":{"v":2938,"d":"2,938"}},{"$f":"INDEX($C67:$O67,,עמודת_התקופה_שנבחרה)/INDEX($C$72:$O$72,,עמודת_התקופה_שנבחרה)","v":{"$error":"#VALUE!"}}]
[null,null,123,123,123,123,123,123,123,123,123,123,123,123,{"$f":"SUM(C68:N68)","v":{"v":1476,"d":"1,476"}},{"$f":"INDEX($C68:$O68,,עמודת_התקופה_שנבחרה)/INDEX($C$72:$O$72,,עמודת_התקופה_שנבחרה)","v":{"$error":"#VALUE!"}}]
[null,null,0,0,52,55,45,40,35,60,65,70,70,70,{"$f":"SUM(C69:N69)","v":562},{"$f":"INDEX($C69:$O69,,עמודת_התקופה_שנבחרה)/INDEX($C$72:$O$72,,עמודת_התקופה_שנבחרה)","v":{"$error":"#VALUE!"}}]
[null,null,75,75,75,75,75,75,75,75,75,75,75,75,{"$f":"SUM(C70:N70)","v":900},{"$f":"INDEX($C70:$O70,,עמודת_התקופה_שנבחרה)/INDEX($C$72:$O$72,,עמודת_התקופה_שנבחרה)","v":{"$error":"#VALUE!"}}]
[]
["התווית 'סה\"כ הוצאות' מופיעה בתא משמאל. סה\"כ ההוצאות עבור כל חודש מחושב באופן אוטומטי בתאים C72 עד N72. ההוצאות השנתיות מחושבות באופן אוטומטי בתא O72. אחוז הגידול מחושב באופן אוטומטי בתא P72. תרשים זעיר מתעדכן באופן אוטומטי בתא Q72.","סה\"כ הוצאות",{"$f":"SUM(C40,C45,C49,C53,C59,C67)","v":{"v":1056,"d":"1,056"}},{"v":1006,"d":"1,006"},{"v":2233,"d":"2,233"},{"v":1426,"d":"1,426"},{"v":1421,"d":"1,421"},{"v":2396,"d":"2,396"},{"v":1501,"d":"1,501"},{"v":1471,"d":"1,471"},{"v":2446,"d":"2,446"},{"v":1416,"d":"1,416"},{"v":1491,"d":"1,491"},{"v":1586,"d":"1,586"},{"$f":"SUM(C72:N72)","v":{"v":19449,"d":"19,449"}},{"$f":"INDEX($C72:$O72,,עמודת_התקופה_שנבחרה)/INDEX($C$72:$O$72,,עמודת_התקופה_שנבחרה)","v":{"$error":"#VALUE!"}}]

{"sheet":"חישובי_תרשים","index":2,"n_rows":23,"n_cols":16,"rows_kept":23,"hidden":true}
["***גיליון זה צריך להישאר מוסתר***"]
[]
[{"$nulls":3},{"$f":"IFERROR(LOWER(TEXT(VALUE(התקופה_שנבחרה&\" 1\"),\"mmmm\")),\"שנה\")","v":"שנה"}]
[]
[{"$nulls":3},"כותרות תרשים דינאמיות"]
[{"$nulls":3},{"$f":"\"הכנסות\"&\" \"&\"ב\"&D3&\":\"","v":"הכנסות בשנה:"},null,{"$f":"TEXT(INDEX('תקציב חודשי ללימודים'!$C$37:$O$37,,עמודת_התקופה_שנבחרה),\" #,### ₪\")","v":{"$error":"#VALUE!"}}]
[{"$nulls":3},{"$f":"\"הוצאות\"&\" \"&\"ב\"&D3&\":\"","v":"הוצאות בשנה:"},null,{"$f":"TEXT(INDEX('תקציב חודשי ללימודים'!$C$72:$O$72,,עמודת_התקופה_שנבחרה),\" #,### ₪\")","v":{"$error":"#VALUE!"}}]
[{"$nulls":3},{"$f":"\"תזרים מזומנים\"&\" \"&\"ב\"&D3&\":\"","v":"תזרים מזומנים בשנה:"},{"$f":"INDEX('תקציב חודשי ללימודים'!C28:O28,ערך_פס_גלילה)","v":169},{"$f":"TEXT(E8,\"#,### ₪\")","v":"169 ₪"}]
[]
[]
[]
[{"$nulls":3},{"$f":"LOWER('תקציב חודשי ללימודים'!C27)","v":{"$error":"#VALUE!"}},{"$f":"LOWER('תקציב חודשי ללימודים'!D27)","v":{"$error":"#VALUE!"}},{"$f":"LOWER('תקציב חודשי ללימודים'!E27)","v":{"$error":"#VALUE!"}},{"$f":"LOWER('תקציב חודשי ללימודים'!F27)","v":{"$error":"#VALUE!"}},{"$f":"LOWER('תקציב חודשי ללימודים'!G27)","v":{"$error":"#VALUE!"}},{"$f":"LOWER('תקציב חודשי ללימודים'!H27)","v":{"$error":"#VALUE!"}},{"$f":"LOWER('תקציב חודשי ללימודים'!I27)","v":{"$error":"#VALUE!"}},{"$f":"LOWER('תקציב חודשי ללימודים'!J27)","v":{"$error":"#VALUE!"}},{"$f":"LOWER('תקציב חודשי ללימודים'!K27)","v":{"$error":"#VALUE!"}},{"$f":"LOWER('תקציב חודשי ללימודים'!L27)","v":{"$error":"#VALUE!"}},{"$f":"LOWER('תקציב חודשי ללימודים'!M27)","v":{"$error":"#VALUE!"}},{"$f":"LOWER('תקציב חודשי ללימודים'!N27)","v":{"$error":"#VALUE!"}},{"$f":"LOWER('תקציב חודשי ללימודים'!O27)","v":"שנה  "}]
[null,null,"ערך פס גלילה: ",1]
[null,null,"תרשים של תזרים מזומנים: ",{"$f":"IF(התקופה_שנבחרה='תקציב חודשי ללימודים'!C$31,IF('תקציב חודשי ללימודים'!$C$28:$O$28>=0,'תקציב חודשי ללימודים'!$C$28:$O$28,NA()),NA())","v":{"$error":"#VALUE!"}},{"$f":"IF(התקופה_שנבחרה='תקציב חודשי ללימודים'!D$31,IF('תקציב חודשי ללימודים'!$C$28:$O$28>=0,'תקציב חודשי ללימודים'!$C$28:$O$28,NA()),NA())","v":{"$error":"#VALUE!"}},{"$f":"IF(התקופה_שנבחרה='תקציב חודשי ללימודים'!E$31,IF('תקציב חודשי ללימודים'!$C$28:$O$28>=0,'תקציב חודשי ללימודים'!$C$28:$O$28,NA()),NA())","v":{"$error":"#VALUE!"}},{"$f":"IF(התקופה_שנבחרה='תקציב חודשי ללימודים'!F$31,IF('תקציב חודשי ללימודים'!$C$28:$O$28>=0,'תקציב חודשי ללימודים'!$C$28:$O$28,NA()),NA())","v":{"$error":"#VALUE!"}},{"$f":"IF(התקופה_שנבחרה='תקציב חודשי ללימודים'!G$31,IF('תקציב חודשי ללימודים'!$C$28:$O$28>=0,'תקציב חודשי ללימודים'!$C$28:$O$28,NA()),NA())","v":{"$error":"#VALUE!"}},{"$f":"IF(התקופה_שנבחרה='תקציב חודשי ללימודים'!H$31,IF('תקציב חודשי ללימודים'!$C$28:$O$28>=0,'תקציב חודשי ללימודים'!$C$28:$O$28,NA()),NA())","v":{"$error":"#VALUE!"}},{"$f":"IF(התקופה_שנבחרה='תקציב חודשי ללימודים'!I$31,IF('תקציב חודשי ללימודים'!$C$28:$O$28>=0,'תקציב חודשי ללימודים'!$C$28:$O$28,NA()),NA())","v":{"$error":"#VALUE!"}},{"$f":"IF(התקופה_שנבחרה='תקציב חודשי ללימודים'!J$31,IF('תקציב חודשי ללימודים'!$C$28:$O$28>=0,'תקציב חודשי ללימודים'!$C$28:$O$28,NA()),NA())","v":{"$error":"#VALUE!"}},{"$f":"IF(התקופה_שנבחרה='תקציב חודשי ללימודים'!K$31,IF('תקציב חודשי ללימודים'!$C$28:$O$28>=0,'תקציב חודשי ללימודים'!$C$28:$O$28,NA()),NA())","v":{"$error":"#VALUE!"}},{"$f":"IF(התקופה_שנבחרה='תקציב חודשי ללימודים'!L$31,IF('תקציב חודשי ללימודים'!$C$28:$O$28>=0,'תקציב חודשי ללימודים'!$C$28:$O$28,NA()),NA())","v":{"$error":"#VALUE!"}},{"$f":"IF(התקופה_שנבחרה='תקציב חודשי ללימודים'!M$31,IF('תקציב חודשי ללימודים'!$C$28:$O$28>=0,'תקציב חודשי ללימודים'!$C$28:$O$28,NA()),NA())","v":{"$error":"#VALUE!"}},{"$f":"IF(התקופה_שנבחרה='תקציב חודשי ללימודים'!N$31,IF('תקציב חודשי ללימודים'!$C$28:$O$28>=0,'תקציב חודשי ללימודים'!$C$28:$O$28,NA()),NA())","v":{"$error":"#VALUE!"}},{"$f":"IF(התקופה_שנבחרה='תקציב חודשי ללימודים'!O$31,IF('תקציב חודשי ללימודים'!$C$28:$O$28>=0,'תקציב חודשי ללימודים'!$C$28:$O$28,NA()),NA())","v":{"$error":"#VALUE!"}}]
[null,null,"מצטבר: ",{"$f":"IF(התקופה_שנבחרה='תקציב חודשי ללימודים'!C$31,IF('תקציב חודשי ללימודים'!$C$28:$O$28<0,'תקציב חודשי ללימודים'!$C$28:$O$28,NA()),NA())","v":{"$error":"#VALUE!"}},{"$f":"IF(התקופה_שנבחרה='תקציב חודשי ללימודים'!D$31,IF('תקציב חודשי ללימודים'!$C$28:$O$28<0,'תקציב חודשי ללימודים'!$C$28:$O$28,NA()),NA())","v":{"$error":"#VALUE!"}},{"$f":"IF(התקופה_שנבחרה='תקציב חודשי ללימודים'!E$31,IF('תקציב חודשי ללימודים'!$C$28:$O$28<0,'תקציב חודשי ללימודים'!$C$28:$O$28,NA()),NA())","v":{"$error":"#VALUE!"}},{"$f":"IF(התקופה_שנבחרה='תקציב חודשי ללימודים'!F$31,IF('תקציב חודשי ללימודים'!$C$28:$O$28<0,'תקציב חודשי ללימודים'!$C$28:$O$28,NA()),NA())","v":{"$error":"#VALUE!"}},{"$f":"IF(התקופה_שנבחרה='תקציב חודשי ללימודים'!G$31,IF('תקציב חודשי ללימודים'!$C$28:$O$28<0,'תקציב חודשי ללימודים'!$C$28:$O$28,NA()),NA())","v":{"$error":"#VALUE!"}},{"$f":"IF(התקופה_שנבחרה='תקציב חודשי ללימודים'!H$31,IF('תקציב חודשי ללימודים'!$C$28:$O$28<0,'תקציב חודשי ללימודים'!$C$28:$O$28,NA()),NA())","v":{"$error":"#VALUE!"}},{"$f":"IF(התקופה_שנבחרה='תקציב חודשי ללימודים'!I$31,IF('תקציב חודשי ללימודים'!$C$28:$O$28<0,'תקציב חודשי ללימודים'!$C$28:$O$28,NA()),NA())","v":{"$error":"#VALUE!"}},{"$f":"IF(התקופה_שנבחרה='תקציב חודשי ללימודים'!J$31,IF('תקציב חודשי ללימודים'!$C$28:$O$28<0,'תקציב חודשי ללימודים'!$C$28:$O$28,NA()),NA())","v":{"$error":"#VALUE!"}},{"$f":"IF(התקופה_שנבחרה='תקציב חודשי ללימודים'!K$31,IF('תקציב חודשי ללימודים'!$C$28:$O$28<0,'תקציב חודשי ללימודים'!$C$28:$O$28,NA()),NA())","v":{"$error":"#VALUE!"}},{"$f":"IF(התקופה_שנבחרה='תקציב חודשי ללימודים'!L$31,IF('תקציב חודשי ללימודים'!$C$28:$O$28<0,'תקציב חודשי ללימודים'!$C$28:$O$28,NA()),NA())","v":{"$error":"#VALUE!"}},{"$f":"IF(התקופה_שנבחרה='תקציב חודשי ללימודים'!M$31,IF('תקציב חודשי ללימודים'!$C$28:$O$28<0,'תקציב חודשי ללימודים'!$C$28:$O$28,NA()),NA())","v":{"$error":"#VALUE!"}},{"$f":"IF(התקופה_שנבחרה='תקציב חודשי ללימודים'!N$31,IF('תקציב חודשי ללימודים'!$C$28:$O$28<0,'תקציב חודשי ללימודים'!$C$28:$O$28,NA()),NA())","v":{"$error":"#VALUE!"}},{"$f":"IF(התקופה_שנבחרה='תקציב חודשי ללימודים'!O$31,IF('תקציב חודשי ללימודים'!$C$28:$O$28<0,'תקציב חודשי ללימודים'!$C$28:$O$28,NA()),NA())","v":{"$error":"#VALUE!"}}]
[]
[]
[null,null,"נתוני תרשים הכנסות"]
[null,null,"עזרה כספית (מענקים, מלגות, הלוואות)",{"$f":"'תקציב חודשי ללימודים'!P32","v":{"$error":"#VALUE!"}}]
[null,null,"שכר אחרי מס מעבודה",{"$f":"'תקציב חודשי ללימודים'!P33","v":{"$error":"#VALUE!"}}]
[null,null,"עזרה כספית מבני משפחה",{"$f":"'תקציב חודשי ללימודים'!P34","v":{"$error":"#VALUE!"}}]
[null,null,"משיכות מהחסכונות",{"$f":"'תקציב חודשי ללימודים'!P35","v":{"$error":"#VALUE!"}}]
[null,null,"אחר (דמי מזונות, סיוע ציבורי, מתנות וכן הלאה)",{"$f":"'תקציב חודשי ללימודים'!P36","v":{"$error":"#VALUE!"}}]